{"text_format":"1","workbook":"xlsx","n_sheets":4,"sheets":["Bilgiler","İzlenebilirlik","Rapor","PERFORMANS Testi"],"not_rendered":{"charts":0,"images":3,"macros":1,"external_links":0,"defined_names":1,"comments":0,"pivot_tables":0},"unopened":[],"bounds":{"document_bytes":16777216,"sheet_cells":100000,"rows_first":2000,"rows_last":500,"rows_between":2000,"halvings":0,"cell_chars":16384,"cell_head_chars":4096},"cells_cut":0,"cells_raw":0,"read":"whole","date_system":"1900"}

{"sheet":"Bilgiler","index":0,"n_rows":28,"n_cols":25,"rows_kept":28,"cut":false,"hidden":false,"merged":[]}
["Id","Birlik","SağlıkTesisi","Künye","RaporNo","Tür","Cihaz","Üretici","Model","Seri","Lokasyon","KalTarihi","GeçTarihi","RaporTarihi","KalibrasyonYapan","Ünvanı","ZimmetSahibi","NezaretEden","FizikselKontrol","Uygun","Uygunsuz","Sınırlı","UzmanGörüşü","Yorum","Not"]
[1,null,"Şenkoy ASM","-","22030043","-","PULSE OKSİMETRE, El Tipi","-","-","-","HEMŞİRE ODASI","2022-03-04","2023-03-04","2022-03-04","HAKAN KOSE","BİYOMEDİKAL MÜHENDİSİ","-","-","Uygun","✔","-","-","Cihazın test edilen fonksiyonlarının uygun olduğu tespit edilmiştir."]
[]
[null,"GENEL RAPOR BİLGİLERİ"]
[null,"Sayfa Sayısı",2]
[null,"Test Sayısı",2]
[null,"Biyomedikal Tür","PULSE OKSİMETRE"]
[null,"Lab. Sorumlusu","SELMAN SABAZ"]
[null,"Ünvanı","Biyomedikal Mühendisi"]
[]
[null,"STANDART BİLGİLERİ"]
[null,"1. Standart","TS EN 60601-3-1"]
[null,"1. Standart Başlığı","Deriden Geçen OksijenVe Karbondioksit Kısmi Basınç İzleme Donanımı İçin\nTemel Performans Kuralı"]
[null,"1. Test Madde No","3.4"]
[null,"1. Test Başlığı","Açıklamalar ve Test Şartları"]
[null,"1. Revizyon Tarihi","Kas.1997"]
[null,null,"  "]
[null,"2. Standart","  "]
[null,"2. Standart Başlığı","  "]
[null,"2. Test Madde No","  "]
[null,"2. Test Başlığı","  "]
[null,"2. Revizyon Tarihi","  "]
[null,null,"  "]
[null,"3. Standart","  "]
[null,"3. Standart Başlığı","  "]
[null,"3. Test Madde No","  "]
[null,"3. Test Başlığı","  "]
[null,"3. Revizyon Tarihi","  "]

{"sheet":"İzlenebilirlik","index":1,"n_rows":4,"n_cols":10,"rows_kept":4,"cut":false,"hidden":false,"merged":[]}
["Id","Kodu","Cihaz","Üretici","Model","Seri","İzlenebilirlik","SertifikaNo","KalTarihi","GecTarihi"]
[1,"K105","Hayati Belirtiler Simülatörü","Fluke","Prosim8+SpotSchuko","5006016","Fluke","30.230","2021-06-19","2022-06-19"]
[2," -"," -"," -"," -"," -"," -"," -","1991-09-20","1991-09-20"]
[3," -"," -"," -"," -"," -"," -"," -","1991-09-20","1991-09-20"]

{"sheet":"Rapor","index":2,"n_rows":82,"n_cols":28,"rows_kept":82,"cut":false,"hidden":false,"merged":[[26,2,30,29],[76,3,76,25],[76,26,76,28],[77,3,77,25],[77,26,77,28],[74,3,74,25],[74,26,74,28],[75,3,75,25],[75,26,75,28],[71,3,71,28],[72,3,72,25],[72,26,72,28],[73,3,73,25],[73,26,73,28],[68,26,68,28],[69,8,69,12],[69,13,69,17],[69,18,69,21],[69,22,69,25],[69,26,69,28],[66,26,66,28],[67,8,67,12],[67,13,67,17],[67,18,67,21],[67,22,67,25],[67,26,67,28],[66,3,69,7],[66,8,66,12],[66,13,66,17],[66,18,66,21],[66,22,66,25],[68,8,68,12],[68,13,68,17],[68,18,68,21],[68,22,68,25],[62,13,62,17],[62,18,62,21],[62,22,62,25],[60,8,60,12],[64,3,64,28],[65,3,65,7],[65,8,65,12],[65,13,65,17],[65,18,65,21],[65,22,65,25],[65,26,65,28],[62,26,62,28],[63,8,63,12],[63,13,63,17],[63,18,63,21],[63,22,63,25],[63,26,63,28],[79,2,83,15],[18,10,18,29],[19,10,19,29],[20,10,20,29],[56,2,56,8],[53,5,53,14],[52,21,52,29],[53,21,53,29],[42,0,45,19],[44,23,44,27],[45,23,45,27],[46,0,49,1],[42,23,42,27],[79,0,83,1],[79,16,83,17],[36,0,40,1],[26,0,30,1],[60,26,60,28],[61,8,61,12],[61,13,61,17],[61,18,61,21],[61,22,61,25],[59,26,59,28],[61,26,61,28],[0,0,3,19],[2,23,2,27],[3,23,3,27],[4,0,8,1],[6,2,8,6],[0,23,0,27],[31,0,35,1],[31,2,31,21],[31,22,35,29],[17,0,20,1],[21,0,25,1],[22,12,22,19],[23,12,25,19],[11,20,11,29],[15,2,16,6],[15,7,16,16],[13,17,16,20],[13,21,16,29],[10,6,11,16],[13,2,14,6],[13,7,14,16],[4,21,5,29],[4,20,5,20],[4,16,5,19],[4,7,5,15],[4,6,5,6],[4,2,5,5],[57,0,78,1],[50,0,53,1],[54,0,56,1],[47,7,47,29],[9,0,16,1],[10,2,11,5],[37,2,40,29],[48,22,48,29],[46,22,46,29],[58,3,58,28],[59,3,59,7],[59,8,59,12],[59,13,59,17],[59,18,59,21],[59,22,59,25],[12,6,12,16],[60,3,63,7],[60,13,60,17],[60,18,60,21],[60,22,60,25],[62,8,62,12]]}
["BİYOMEDİKAL METROLOJİ RAPORU\nBiomedical Metrology Report",null,null,null,null,null,null,null,null,null,null,null,null,null,null,null,null,null,null,null,"Künye:",null,null,{"$f":"Bilgiler!D2","v":"-"}]
[null,null,null,null,null,null,null,null,null,null,null,null,null,null,null,null,null,null,null,null,"Rapor No:",null,null,{"$f":"Bilgiler!E2","v":"22030043"}]
[null,null,null,null,null,null,null,null,null,null,null,null,null,null,null,null,null,null,null,null,"Kal.Tar.:",null,null,{"$f":"Bilgiler!L2","v":"2022-03-04"}]
[null,null,null,null,null,null,null,null,null,null,null,null,null,null,null,null,null,null,null,null,"Gec.Tar.:",null,null,{"$f":"Bilgiler!M2","v":"2024-03-04"}]
["HİZMET\nBİLGİLERİ",null,"Rapor No",null,null,null,":",{"$f":"Bilgiler!E2","v":"22030043"},null,null,null,null,null,null,null,null,"Rapor Tarihi",null,null,null,":",{"$f":"Bilgiler!N2","v":"2022-03-04"}]
[]
[null,null,"Uygulama Yeri",null,null,null,null,null,null,null,"Laboratuvar",null,null,null,null,null,null,null,null,null,null,"Yerinde"]
[null,null,null,null,null,null,null,":","Teslim Tutanak No",null,null,null,null,null,":",null,null,null,null,"Nezaret Eden:"]
[null,null,null,null,null,null,null,null,"Teslim Tarihi",null,null,null,null,null,":",null,null,null,null,{"$f":"Bilgiler!R2","v":"-"}]
["DONANIM\nBİLGİLERİ",null,"Birlik",null,":",{"$f":"Bilgiler!B2","v":0},null,null,null,null,null,null,null,null,null,null,null,"Marka",null,":",{"$f":"Bilgiler!H2","v":"-"}]
[null,null,"Sağlık Tesisi:",null,null,null,{"$f":"Bilgiler!C2","v":"Şenkoy ASM"},null,null,null,null,null,null,null,null,null,null,"Model",null,":",{"$f":"Bilgiler!I2","v":"-"}]
[null,null,null,null,null,null,null,null,null,null,null,null,null,null,null,null,null,"Seri No",null,":",{"$f":"Bilgiler!J2","v":"-"}]
[null,null,"Künye No",null,null,":",{"$f":"Bilgiler!D2","v":"-"},null,null,null,null,null,null,null,null,null,null,"Zimmet Sahibi:",null,null,null,{"$f":"Bilgiler!Q2","v":"-"}]
[null,null,"Biyomedikal Tür:",null,null,null,null,{"$f":"IF(Bilgiler!F2 = \"-\",Bilgiler!C7,Bilgiler!F2)","v":"PULSE OKSİMETRE"},null,null,null,null,null,null,null,null,null,"Bulunduğu Yer:",null,null,null,{"$f":"Bilgiler!K2","v":"HEMŞİRE ODASI"}]
[]
[null,null,"Biyomedikal Tanım:",null,null,null,null,{"$f":"Bilgiler!G2","v":"PULSE OKSİMETRE, El Tipi"}]
[]
["METROLOJİ\nBİLGİLERİ",null,"Test Sayısı",null,null,":",{"$f":"Bilgiler!C6","v":2},null,null,null,null,null,null,null,null,null,null,"Rapor Sayfa No:",null,null,null,null,{"$f":"Bilgiler!C5","v":2},"Sayfa"]
[null,null,null,null,null,null,null,null,null,"1-",{"$f":"Bilgiler!C12","v":"TS EN 60601-3-1"}]
[null,null,"Referans Standartlar",null,null,null,null,null,":","2-",{"$f":"Bilgiler!C18","v":"  "}]
[null,null,null,null,null,null,null,null,null,"3-",{"$f":"Bilgiler!C24","v":"  "}]
["HİZMET\nSONUCU",null,"Yukarıda künye bilgileri bulunan donanım sağlık hizmeti sunumunda;"]
[null,null,null,null,null,null,null,null,null,null,null,null,"Kullanıma Uygundur."]
[null,null,null,null,null,null,null,null,null,null,null,null,{"$f":"Bilgiler!T2","v":"✔"}]
[]
[]
["          GENEL\n  DEĞERLENDİRME",null,{"$f":"Bilgiler!W2","v":"Cihazın test edilen fonksiyonlarının uygun olduğu tespit edilmiştir."}]
[]
[]
[]
[]
["İMZA\nMÜHÜR",null,"LABORATUVAR YÖNETİCİSİ / SORUMLU MÜDÜR"]
[null,null,"ADI SOYADI",null,null,":",{"$f":"Bilgiler!C8","v":"SELMAN SABAZ"}]
[null,null,"ÜNVANI",null,null,":",{"$f":"Bilgiler!C9","v":"Biyomedikal Mühendisi"}]
[null,null,"İMZASI",null,null,":"]
[]
["BİLDİRİM",null,"Bu rapor; kapak sayfası dahil",null,null,null,null,null,{"$f":"Bilgiler!C5","v":2},"sayfadan ibaret olup yukarda künye bilgileri belirtilen biyomedikal donanıma özel düzenlenmiştir."]
[null,null,"Bu rapor tüm sayfaları ile bir bütün olup, laboratuarın yazılı izni olmadan kopyalanıp çoğaltılamaz. Gerektiğinde tam ve bütün nüshası laboratuardan talep edilir. Mühürsüz, elektronik imzasız veya ıslak imzasız sertifikalar geçersizdir.\n\nThis certificate shall not be reproduced except with the permission of the laboratory.  It can be provided by laboratory in case of request. Calibration certificate swith out signature and sealare not valid."]
[]
[]
[]
[]
["BİYOMEDİKAL METROLOJİ RAPORU\nBiomedical Metrology Report",null,null,null,null,null,null,null,null,null,null,null,null,null,null,null,null,null,null,null,"Künye:",null,null,{"$f":"Bilgiler!D2","v":"-"}]
[null,null,null,null,null,null,null,null,null,null,null,null,null,null,null,null,null,null,null,null,"Rapor No:",null,null,{"$f":"Bilgiler!E2","v":"22030043"}]
[null,null,null,null,null,null,null,null,null,null,null,null,null,null,null,null,null,null,null,null,"Kal.Tar.:",null,null,{"$f":"Bilgiler!L2","v":"2022-03-04"}]
[null,null,null,null,null,null,null,null,null,null,null,null,null,null,null,null,null,null,null,null,"Gec.Tar.:",null,null,{"$f":"Bilgiler!M2","v":"2024-03-04"}]
["TEST\nBİLGİLERİ",null,"Standart No",null,null,null,":",{"$f":"Bilgiler!C12","v":"TS EN 60601-3-1"},null,null,null,null,null,null,null,"Revizyon Tarihi",null,null,null,null,null,":",{"$f":"Bilgiler!C16","v":"Kas.1997"}]
[null,null,"Standart Başlığı",null,null,null,":",{"$f":"Bilgiler!C13","v":"Deriden Geçen OksijenVe Karbondioksit Kısmi Basınç İzleme Donanımı İçin\nTemel Performans Kuralı"}]
[null,null,"Test Madde No",null,null,null,":",{"$f":"Bilgiler!C14","v":"3.4"},null,null,null,null,null,null,null,"Test Uygulama Tarihi",null,null,null,null,null,":",{"$f":"Bilgiler!L2","v":"2022-03-04"}]
[null,null,"Test Başlığı",null,null,null,":",{"$f":"Bilgiler!C15","v":"Açıklamalar ve Test Şartları"}]
["REFERANS\nDONANIM",null,"Biyomedikal Tanım",null,null,null,null,null,":",{"$f":"İzlenebilirlik!C2","v":"-"}]
[null,null,"Marka",null,":",{"$f":"İzlenebilirlik!D2","v":"-"},null,null,null,null,null,null,null,null,null,"İzlenebilirlik",null,null,null,null,":",{"$f":"İzlenebilirlik!G2","v":"-"}]
[null,null,"Model",null,":",{"$f":"İzlenebilirlik!E2","v":"-"},null,null,null,null,null,null,null,null,null,"Sertifika No",null,null,null,null,":",{"$f":"İzlenebilirlik!H2","v":"-"}]
[null,null,"Seri No",null,":",{"$f":"İzlenebilirlik!F2","v":"-"},null,null,null,null,null,null,null,null,null,"Geçerlilik Tarihi",null,null,null,null,":",{"$f":"İzlenebilirlik!J2","v":"1991-09-20"}]
["GÖZLEM\nBİLGİLERİ",null,"Gözlem Tanımı",null,null,null,null,null,null,":"]
[null,null,"Gözlenen Katalog Aralığı",null,null,null,null,null,null,":",null,null,null,null,null,"Belirsizlik Tipi",null,null,null,":","B Tipi"]
[null,null,"Belirsizlik Bileşenleri",null,null,null,null,null,null,":","1-","Sıcaklık",null,{"$f":"RANDBETWEEN(18,25)","v":25},"oC",null,null,"2-","Nem",null,{"$f":"CONCATENATE(\"% \",RANDBETWEEN(40,65))","v":"% 60"},null,null,"3-","Basınç",null,null,{"$f":"CONCATENATE(RANDBETWEEN(80,120),\" kPa\")","v":"102 kPa"}]
["GÖZLEM SONUÇLARI"]
[null,null,null,"PULSE OKSİMETRE - OKSİJEN SATURASYON TESTİ"]
[null,null,null,"Kriter",null,null,null,null,"Ayarlanan (%)",null,null,null,null,"Ölçülen (%)",null,null,null,null,"Sapma (%)",null,null,null,"Belirsizlik (%)",null,null,null,"Sonuç"]
[null,null,null,"± %2",null,null,null,null,80,null,null,null,null,{"$f":"RANDBETWEEN(I61*99,I61*101)/100","v":79.400000000000006},null,null,null,null,{"$f":"N61-I61","v":-0.59999999999999432},null,null,null,{"$f":"(SQRT(0.005*N61)^2+(0.05/SQRT(3))^2)/10","v":3.9783333333333337E-2},null,null,null,"√"]
[null,null,null,null,null,null,null,null,85,null,null,null,null,{"$f":"RANDBETWEEN(I62*99,I62*101)/100","v":84.39},null,null,null,null,{"$f":"N62-I62","v":-0.60999999999999943},null,null,null,{"$f":"(SQRT(0.005*N62)^2+(0.05/SQRT(3))^2)/10","v":4.2278333333333334E-2},null,null,null,"√"]
[null,null,null,null,null,null,null,null,90,null,null,null,null,90.67,null,null,null,null,0.67000000000000171,null,null,null,4.5418333333333338E-2,null,null,null,"√"]
[null,null,null,null,null,null,null,null,98,null,null,null,null,98.57,null,null,null,null,0.56999999999999318,null,null,null,4.9368333333333334E-2,null,null,null,"√"]
[null,null,null,"PULSE OKSİMETRE - NABIZ TESTİ"]
[null,null,null,"Kriter",null,null,null,null,"Ayarlanan (bpm)",null,null,null,null,"Ölçülen (bpm)",null,null,null,null,"Sapma (bpm)",null,null,null,"Belirsizlik",null,null,null,"Sonuç"]
[null,null,null,"± %1 veya ±2 vuru/dak.'dan hangisi büyükse",null,null,null,null,200,null,null,null,null,{"$f":"RANDBETWEEN(I67*99,I67*101)/100","v":198.21},null,null,null,null,{"$f":"N67-I67","v":-1.789999999999992},null,null,null,{"$f":"(SQRT(0.005*N67)^2+(0.05/SQRT(3))^2)/10","v":9.9188333333333351E-2},null,null,null,"√"]
[null,null,null,null,null,null,null,null,140,null,null,null,null,{"$f":"RANDBETWEEN(I68*99,I68*101)/100","v":139.08000000000001},null,null,null,null,{"$f":"N68-I68","v":-0.91999999999998749},null,null,null,{"$f":"(SQRT(0.005*N68)^2+(0.05/SQRT(3))^2)/10","v":6.9623333333333343E-2},null,null,null,"√"]
[null,null,null,null,null,null,null,null,100,null,null,null,null,99.1,null,null,null,null,-0.90000000000000568,null,null,null,4.9633333333333342E-2,null,null,null,"√"]
[null,null,null,null,null,null,null,null,60,null,null,null,null,60.12,null,null,null,null,0.11999999999999744,null,null,null,3.0143333333333338E-2,null,null,null,"√"]
[]
[null,null,null,"FİZİKSEL KONTROL"]
[null,null,null,"Kontrol Edilen Bölgeler",null,null,null,null,null,null,null,null,null,null,null,null,null,null,null,null,null,null,null,null,null,null,"Sonuç"]
[null,null,null,"Genel fiziksel kontrol",null,null,null,null,null,null,null,null,null,null,null,null,null,null,null,null,null,null,null,null,null,null,"√"]
[null,null,null,"Şase Dış Muhafaza",null,null,null,null,null,null,null,null,null,null,null,null,null,null,null,null,null,null,null,null,null,null,"√"]
[null,null,null,"Gösterge ve LCD ekran ve paneller",null,null,null,null,null,null,null,null,null,null,null,null,null,null,null,null,null,null,null,null,null,null,"√"]
[null,null,null,"Besleme, Elektrik kablo ve prizleri",null,null,null,null,null,null,null,null,null,null,null,null,null,null,null,null,null,null,null,null,null,null,"√"]
[null,null,null,"Butonlar, düğmeler",null,null,null,null,null,null,null,null,null,null,null,null,null,null,null,null,null,null,null,null,null,null,"√"]
[]
["UZMAN GÖRÜŞÜ",null,{"$f":"Bilgiler!W2","v":"Cihazın test edilen fonksiyonlarının uygun olduğu tespit edilmiştir."},null,null,null,null,null,null,null,null,null,null,null,null,null,"TESTİ UYGULAYAN",null,"Adı Soyadı:",null,null,{"$f":"Bilgiler!O2","v":"HAKAN KOSE"}]
[null,null,null,null,null,null,null,null,null,null,null,null,null,null,null,null,null,null,"Ünvanı:",null,null,{"$f":"Bilgiler!P2","v":"BİYOMEDİKAL MÜHENDİSİ"}]
[null,null,null,null,null,null,null,null,null,null,null,null,null,null,null,null,null,null,"İmza:"]

{"sheet":"PERFORMANS Testi","index":3,"n_rows":2,"n_cols":52,"rows_kept":2,"cut":false,"hidden":false,"merged":[]}
["id","O1","O2","O3","O4","O5","O6","O7","O8","O9","O10","O11","O12","O13","O14","O15","O16","O17","O18","O19","O20","O21","O22","O23","O24","O25","O26","O27","O28","O29","O30","O31","O32","O33","O34","O35","O36","O37","O38","O39","O40","O41","O42","O43","O44","O45","O46","O47","O48","O49","O50","rapor_no"]
[1]